bitfinex/quotes_SOLUSD_20250307
["timestamp","ask_amount","ask_price","bid_price","bid_amount"]
[1741334901641,12.0978649,144.13,144.12,82.27516157]
[1741334901825,12.0978649,144.13,144.12,0.033]
[1741334904249,28.7361843,144.13,144.12,0.033]
[1741334904645,12.0978649,144.13,144.12,0.033]
[1741334904847,5.1597649,144.13,144.12,0.033]
[1741334905048,18.79181043,144.12,144.07,82.1]
[1741334905351,100.79181043,144.12,144.05,82.1]
[1741334905928,21.7980843,144.11,144.05,82.1]
[1741334906141,5.1597649,144.11,144.05,82.1]
[1741334906351,5.1597649,144.11,144.06,0.14216157]
[1741334906527,5.1597649,144.11,144.1,22.10066234]
[1741334906727,5.1597649,144.11,144.1,92.54026234]
[1741334906949,5.1597649,144.11,144.1,119.04874716]
[1741334907529,5.1597649,144.13,144.11,0.14216157]
[1741334907730,5.1597649,144.13,144.12,22.10066234]
[1741334908045,10.80262599,144.17,144.16,38.933972]
[1741334908245,10.80262599,144.17,144.16,132.10840546]
[1741334908828,10.80262599,144.17,144.16,139.04510546]
[1741334909028,10.80262599,144.17,144.16,137.58917277]
[1741334909539,0.03,144.2,144.19,20.14216157]
[1741334909743,0.03,144.2,144.19,105.60066234]
[1741334909944,0.03,144.2,144.19,0.14216157]
[1741334910140,0.03,144.2,144.16,0.14216157]
[1741334911439,0.03,144.2,144.18,21.95850077]
[1741334911640,0.03,144.2,144.19,0.14216157]
[1741334911946,0.03,144.2,144.17,21.95850077]
[1741334911947,0.03,144.2,144.18,0.14216157]
[1741334914441,0.03,144.2,144.18,7.07766157]
[1741334915051,0.03,144.2,144.18,92.53616234]
[1741334915231,0.03,144.2,144.19,22.10066234]
[1741334915432,0.03,144.2,144.19,0.14216157]
[1741334915955,0.03,144.2,144.19,312.14216157]
[1741334916642,0.03,144.2,144.19,397.60066234]
[1741334917131,0.03,144.2,144.19,404.53586234]
[1741334917554,0.03,144.2,144.19,382.57736157]
[1741334917742,0.03,144.2,144.19,404.53586234]
[1741334919429,0.03,144.2,144.19,382.57736157]
[1741334919634,0.03,144.2,144.19,63.64216157]
[1741334919929,0.03,144.2,144.19,63.5]
[1741334920350,0.03,144.2,144.19,63.64216157]
[1741334920550,0.03,144.2,144.19,0.14216157]
[1741334920857,0.03,144.2,144.19,82.24216157]
[1741334922957,0.03,144.2,144.19,89.17736157]
[1741334923860,0.03,144.2,144.19,111.13586234]
[1741334924041,0.03,144.2,144.19,89.17736157]
[1741334925535,0.03,144.2,144.19,111.13586234]
[1741334926039,20.0,144.17,144.12,63.5]
[1741334926345,20.0,144.17,144.08,152.5404]
[1741334926553,0.14216157,144.18,144.09,21.95850077]
[1741334926893,7.8272,144.2,144.12,21.95850077]
[1741334927059,7.8272,144.2,144.12,63.5]
[1741334927243,7.8272,144.2,144.12,85.45850077]
[1741334927645,7.8272,144.2,144.15,22.10066234]
[1741334927851,7.8272,144.2,144.15,85.60066234]
[1741334927852,1.5672,144.2,144.15,85.60066234]
[1741334928365,1.5672,144.2,144.15,63.64216157]
[1741334929143,1.5672,144.2,144.15,85.60066234]
[1741334929560,0.03,144.2,144.17,0.14216157]
[1741334929939,0.03,144.2,144.17,22.10066234]
[1741334930641,0.03,144.2,144.19,0.14216157]
[1741334930849,0.03,144.2,144.19,22.10066234]
[1741334931457,0.03,144.2,144.19,0.14216157]
[1741334931668,0.03,144.2,144.19,7.07736157]
[1741334931946,0.03,144.2,144.19,13.49952314]
[1741334932163,0.03,144.26,144.25,0.14216157]
[1741334932473,0.03,144.26,144.25,22.10066234]
[1741334932640,0.03,144.26,144.25,40.89247277]
[1741334932845,0.03,144.26,144.25,22.10066234]
[1741334933145,0.03,144.26,144.25,21.95850077]
[1741334933347,0.03,144.26,144.25,22.10066234]
[1741334933555,0.03,144.26,144.25,29.03306234]
[1741334933840,0.03,144.26,144.25,334.10066234]
[1741334934041,0.03,144.26,144.25,0.14216157]
[1741334934262,0.03,144.26,144.22,63.5]
[1741334934461,0.03,144.26,144.21,28.89280077]
[1741334934765,0.03,144.26,144.22,0.14216157]
[1741334935669,0.03,144.26,144.22,42.15278493]
[1741334935861,0.03,144.26,144.25,35.21918493]
[1741334936168,0.0001,144.26,144.25,123.83099536]
[1741334937169,0.0001,144.26,144.25,472.90801872]
[1741334937366,0.0001,144.26,144.25,437.83099536]
[1741334937573,0.0001,144.26,144.25,125.83099536]
[1741334937747,0.0001,144.26,144.25,132.76339536]
[1741334938468,0.0001,144.26,144.25,134.2183127]
[1741334939456,0.0001,144.28,144.27,0.14216157]
[1741334939659,0.03,144.31,144.3,27.07216157]
[1741334939966,0.03,144.31,144.3,131.96918493]
[1741334940468,0.03,144.31,144.3,443.96918493]
[1741334940669,0.03,144.31,144.3,63.64216157]
[1741334941062,0.03,144.31,144.3,70.57216157]
[1741334941763,0.03,144.31,144.3,105.64918493]
[1741334941963,0.03,144.31,144.3,63.64216157]
[1741334942165,0.03,144.31,144.29,0.14216157]
[1741334943154,0.03,144.31,144.28,35.07702336]
[1741334943356,0.03,144.31,144.27,48.30832336]
[1741334943582,0.03,144.31,144.28,0.14216157]
[1741334943855,0.03,144.31,144.28,35.21918493]
[1741334944078,0.03,144.31,144.29,35.07702336]
[1741334944583,0.03,144.31,144.3,35.07702336]
[1741334944785,0.03,144.31,144.3,180.81918493]
[1741334945556,0.03,144.31,144.3,187.74918493]
[1741334947075,0.0001,144.31,144.3,206.54099536]
[1741334947289,0.0001,144.32,144.31,0.28432314]
[1741334947461,0.0001,144.32,144.31,43.74515408]
[1741334947861,0.0001,144.32,144.31,355.74515408]
[1741334948058,0.0001,144.32,144.31,354.2908465]
[1741334948478,0.0001,144.35,144.34,18.79181043]
[1741334948690,0.0001,144.35,144.34,256.00000037]
[1741334948996,0.0001,144.35,144.34,254.54585715]
[1741334949355,0.0001,144.36,144.35,0.14216157]
[1741334949580,0.0001,144.36,144.35,43.74288662]
[1741334949754,0.0001,144.36,144.35,207.99253548]
[1741334950087,0.0001,144.36,144.35,206.53859536]
[1741334951081,0.0001,144.36,144.35,206.39643379]
[1741334951470,0.0001,144.36,144.35,518.39643379]
[1741334951918,0.0001,144.36,144.35,499.74678493]
[1741334952178,0.0001,144.36,144.35,506.02678493]
[1741334952692,0.0001,144.36,144.35,524.67643379]
[1741334952892,0.0001,144.36,144.35,524.81859536]
[1741334953279,0.0001,144.36,144.35,177.59941043]
[1741334953491,0.0001,144.36,144.35,212.67643379]
[1741334953897,0.0001,144.36,144.35,212.81859536]
[1741334955098,0.0001,144.36,144.35,89.0276]
[1741334955401,0.0001,144.36,144.35,124.10462336]
[1741334955590,0.0001,144.36,144.35,82.1]
[1741334956282,0.0001,144.36,144.35,82.24216157]
[1741334958485,1.5155,144.36,144.35,82.1]
[1741334958693,1.5155,144.36,144.34,0.14216157]
[1741334959004,6.9276,144.35,144.34,0.14216157]
[1741334959506,6.9276,144.35,144.33,82.1]
[1741334959680,6.9276,144.35,144.34,0.14216157]
[1741334960089,6.9276,144.35,144.33,82.1]
[1741334961092,6.9276,144.35,144.29,82.1]
[1741334961289,1.594,144.32,144.29,82.1]
[1741334961507,1.594,144.32,144.28,0.033]
[1741334961802,0.14216157,144.31,144.28,0.033]
[1741334962002,18.79181043,144.31,144.28,0.033]
[1741334963199,6.93,144.3,144.28,0.033]
[1741334963580,83.594,144.32,144.28,0.033]
[1741334963785,83.594,144.32,144.28,0.17516157]
[1741334964706,90.523,144.32,144.28,0.17516157]
[1741334964888,90.523,144.32,144.28,0.033]
[1741334965290,8.523,144.32,144.28,0.033]
[1741334974439,1.594,144.32,144.28,0.033]
[1741334975112,5.07066373,144.35,144.3,0.14216157]
[1741334975297,5.07066373,144.35,144.3,22.04961846]
[1741334975496,1.5966,144.35,144.31,21.90745689]
[1741334975799,1.5966,144.35,144.32,0.14216157]
[1741334977199,8.5242,144.35,144.29,82.1]
[1741334977413,8.5242,144.35,144.3,0.14216157]
[1741334978315,0.14216157,144.34,144.29,82.1]
[1741334978521,18.79181043,144.34,144.29,82.1]
[1741334978698,6.9285,144.33,144.31,0.033]
[1741334979114,25.72001043,144.34,144.31,0.033]
[1741334979299,7.07036157,144.34,144.31,0.033]
[1741334979506,8.5244,144.35,144.31,0.033]
[1741334981324,1.5966,144.35,144.31,0.033]
[1741334981620,1.5966,144.35,144.32,0.14216157]
[1741334981824,0.0001,144.36,144.32,82.24216157]
[1741334982017,0.0001,144.36,144.32,117.26990882]
[1741334982322,0.0001,144.36,144.32,82.24216157]
[1741334982620,0.0001,144.36,144.35,0.14216157]
[1741334982824,0.0001,144.36,144.35,124.19750882]
[1741334983616,0.0001,144.36,144.35,89.16976157]
[1741334983819,0.0001,144.36,144.35,124.19750882]
[1741334984027,0.0001,144.36,144.35,82.24216157]
[1741334985427,0.0001,144.36,144.32,35.02774725]
[1741334985628,0.0001,144.36,144.33,0.14216157]
[1741334986232,0.0001,144.36,144.32,82.1]
[1741334986713,0.0001,144.36,144.33,0.14216157]
[1741334987706,0.0001,144.36,144.32,82.1]
[1741334988103,0.0001,144.36,144.33,0.14216157]
[1741334988930,0.0001,144.36,144.33,42.09840882]
[1741334989127,0.0001,144.36,144.35,0.14216157]
[1741334989716,0.0001,144.36,144.34,82.1]
[1741334990433,0.0001,144.36,144.31,82.133]
[1741334990821,0.0001,144.36,144.32,0.14216157]
[1741334991014,0.0001,144.36,144.31,0.033]
[1741334991015,18.79181043,144.34,144.31,0.033]
[1741334991424,0.14216157,144.34,144.31,0.033]
[1741334993123,18.79181043,144.34,144.31,0.033]
[1741334993329,6.9285,144.33,144.31,0.033]
[1741334994741,18.79181043,144.32,144.31,0.033]
[1741334995313,25.72081043,144.32,144.31,0.033]
[1741334999743,22.26363873,144.35,144.31,0.033]
[1741334999952,4.94353873,144.35,144.31,0.17516157]
[1741335000440,8.4467,144.35,144.31,0.033]
[1741335001118,0.14216157,144.34,144.31,0.033]
[1741335001324,18.79181043,144.34,144.31,0.033]
[1741335002844,0.14216157,144.32,144.31,0.033]
[1741335003246,18.79181043,144.32,144.31,0.033]
[1741335004045,24.28464073,144.32,144.31,0.033]
[1741335004632,31.21364073,144.32,144.31,0.033]
[1741335004949,39.08644073,144.32,144.31,0.0001]
[1741335005857,33.59361043,144.32,144.31,0.0001]
[1741335006038,20.40421043,144.32,144.31,0.0001]
[1741335006624,82.0,144.34,144.31,0.0001]
[1741335006823,18.16918493,144.36,144.31,0.0001]
[1741335007055,5.11488493,144.36,144.31,0.0001]
[1741335007850,5.11488493,144.36,144.32,0.14216157]
[1741335007851,1.5663,144.36,144.32,0.14216157]
[1741335008461,0.14216157,144.35,144.31,82.1001]
[1741335008764,7.06986157,144.35,144.31,82.1001]
[1741335009131,21.77506973,144.35,144.31,82.1001]
[1741335009471,25.71951043,144.35,144.31,82.1001]
[1741335010468,7.07086157,144.33,144.31,82.1001]
[1741335010668,7.07086157,144.33,144.31,0.0001]
[1741335012033,117.96864886,144.35,144.31,0.0001]
[1741335012233,18.64964886,144.33,144.31,0.0001]
[1741335012839,23.47888391,144.32,144.31,0.0001]
[1741335013036,18.64964886,144.33,144.31,0.0001]
[1741335013450,25.57864886,144.32,144.31,0.0001]
[1741335013961,25.72081043,144.32,144.31,0.0001]
[1741335018549,18.79181043,144.32,144.31,0.0001]
[1741335018944,26.09534924,144.32,144.31,0.0001]
[1741335019143,85.52914054,144.33,144.31,0.0001]
[1741335019463,24.12255077,144.32,144.31,0.0001]
[1741335019859,92.45774054,144.33,144.31,0.0001]
[1741335020845,85.52914054,144.33,144.31,0.0001]
[1741335021360,92.45764054,144.33,144.31,0.0001]
[1741335023041,21.94120402,144.32,144.31,0.0001]
[1741335023748,85.52914054,144.33,144.31,0.0001]
[1741335024061,92.45784054,144.33,144.31,0.0001]
[1741335024556,0.14216157,144.32,144.31,0.0001]
[1741335024746,18.79181043,144.32,144.31,0.0001]
[1741335024942,38.80102706,144.32,144.31,0.0001]
[1741335025348,18.79181043,144.32,144.31,0.0001]
[1741335025739,25.72081043,144.32,144.31,0.0001]
[1741335031644,38.59545969,144.32,144.31,0.0001]
[1741335031940,25.72081043,144.32,144.31,0.0001]
[1741335032969,36.94146091,144.32,144.31,0.0001]
[1741335033149,25.72081043,144.32,144.31,0.0001]
[1741335034072,38.42594393,144.32,144.31,0.0001]
[1741335034471,25.72081043,144.32,144.31,0.0001]
[1741335035269,49.66496577,144.32,144.31,0.0001]
[1741335035575,25.72081043,144.32,144.31,0.0001]
[1741335037072,54.80887681,144.32,144.31,0.0001]
[1741335037768,25.72081043,144.32,144.31,0.0001]
[1741335039272,25.72081043,144.32,144.23,88.7565]
[1741335039486,0.14216157,144.3,144.23,88.7565]
[1741335039881,18.79181043,144.3,144.23,6.6565]
[1741335040961,0.14216157,144.28,144.23,6.6565]
[1741335041163,0.14216157,144.28,144.21,1.5056]
[1741335041164,0.14216157,144.26,144.21,1.5056]
[1741335043486,6.9324,144.25,144.21,1.5056]
[1741335044372,6.9324,144.25,144.2,82.27516157]
[1741335045184,6.9324,144.25,144.2,0.17516157]
[1741335047086,18.79181043,144.24,144.2,0.033]
[1741335047263,24.35419547,144.24,144.2,0.033]
[1741335047986,6.9333,144.23,144.2,0.033]
[1741335048291,18.79181043,144.22,144.2,0.033]
[1741335049863,82.0,144.23,144.2,0.033]
[1741335050277,6.9325,144.25,144.2,0.033]
[1741335051285,18.79181043,144.24,144.2,0.033]
[1741335053281,0.14216157,144.21,144.2,0.033]
[1741335053886,16.3996471,144.22,144.2,0.033]
[1741335054362,88.9333,144.23,144.2,0.033]
[1741335054569,82.0,144.23,144.2,0.033]
[1741335055375,3.41222476,144.26,144.2,0.033]
[1741335055591,13.14971768,144.28,144.22,0.14216157]
[1741335055769,13.14971768,144.28,144.23,21.91921515]
[1741335056289,23.59037289,144.28,144.22,110.16337672]
[1741335056789,3.53965521,144.28,144.22,110.16337672]
[1741335057176,0.03,144.28,144.25,21.91921515]
[1741335057369,0.03,144.28,144.27,22.06137672]
[1741335057574,0.03,144.28,144.27,28.99277672]
[1741335058993,0.03,144.28,144.27,22.06137672]
[1741335059194,0.03,144.28,144.27,181.08517672]
[1741335059689,0.03,144.28,144.27,145.74216157]
[1741335059890,0.03,144.28,144.25,83.7319]
[1741335060982,0.03,144.28,144.25,82.1]
[1741335061182,0.03,144.28,144.24,0.14216157]
[1741335061874,0.03,144.28,144.25,0.14216157]
[1741335062074,0.03,144.28,144.25,22.06137672]
[1741335062573,0.03,144.28,144.25,0.14216157]
[1741335062878,0.03,144.28,144.27,22.06137672]
[1741335063207,0.03,144.28,144.27,191.16359187]
[1741335063581,0.03,144.28,144.27,198.09499187]
[1741335063782,0.03,144.28,144.27,147.32516157]
[1741335064478,0.03,144.28,144.27,82.24216157]
[1741335067498,0.03,144.28,144.24,21.91921515]
[1741335067704,0.03,144.28,144.25,0.14216157]
[1741335068000,0.03,144.28,144.27,22.06137672]
[1741335068177,0.03,144.28,144.27,167.66137672]
[1741335068504,0.03,144.28,144.27,189.58059187]
[1741335068999,0.03,144.28,144.27,208.23024073]
[1741335069211,0.03,144.34,144.31,20.14216157]
[1741335069380,0.03,144.34,144.33,22.06137672]
[1741335069582,0.03,144.34,144.33,221.46264073]
[1741335069779,0.03,144.34,144.33,221.6048023]
[1741335069980,0.03,144.34,144.33,223.2260023]
[1741335070695,0.0001,144.36,144.35,38.933972]
[1741335070886,0.0001,144.36,144.35,206.45318715]
[1741335071074,0.0001,144.36,144.35,518.45318715]
[1741335071784,0.0001,144.36,144.35,525.38078715]
[1741335072191,0.0001,144.36,144.35,503.461572]
[1741335072901,0.0001,144.36,144.35,525.38078715]
[1741335073279,0.0001,144.36,144.35,518.31102558]
[1741335073599,0.0001,144.36,144.35,187.66137672]
[1741335073902,0.0001,144.36,144.35,104.16137672]
[1741335074087,0.0001,144.36,144.35,82.1]
[1741335074291,0.0001,144.36,144.35,82.24216157]
[1741335074881,0.0001,144.36,144.35,117.25677987]
[1741335075183,0.0001,144.36,144.35,82.1]
[1741335075599,0.0001,144.36,144.31,186.9746183]
[1741335075905,0.0001,144.36,144.31,151.96]
[1741335076077,0.0001,144.36,144.31,145.6]
[1741335076283,18.64974886,144.36,144.29,82.1]
[1741335076594,0.14216157,144.35,144.29,82.1]
[1741335077792,24.2482,144.34,144.29,82.1]
[1741335078894,23.77343453,144.33,144.29,82.1]
[1741335079499,23.77343453,144.33,144.26,35.0146183]
[1741335079690,0.14216157,144.33,144.27,0.14216157]
[1741335079897,0.14216157,144.33,144.27,35.15677987]
[1741335079898,6.929,144.32,144.27,35.15677987]
[1741335080105,6.928,144.34,144.27,35.15677987]
[1741335080485,6.928,144.34,144.29,0.14216157]
[1741335082150,6.928,144.34,144.29,35.15677987]
[1741335082943,88.9277,144.35,144.29,42.08697987]
[1741335083550,6.9277,144.35,144.29,82.24216157]
[1741335083756,14.57556344,144.34,144.29,117.25677987]
[1741335084119,24.2466,144.35,144.29,117.25677987]
[1741335084457,13.45005424,144.34,144.29,117.25677987]
[1741335084739,24.2466,144.35,144.29,82.24216157]
[1741335084918,24.2466,144.35,144.29,117.25677987]
[1741335085121,24.2466,144.35,144.29,82.24216157]
[1741335085860,6.9276,144.35,144.29,82.24216157]
[1741335086016,0.0001,144.36,144.32,35.0146183]
[1741335086334,0.0001,144.36,144.29,82.24216157]
[1741335086335,0.0001,144.36,144.31,35.15677987]
[1741335087641,0.0001,144.36,144.32,35.0146183]
[1741335087842,0.03,144.35,144.32,35.0146183]
[1741335088740,0.03,144.35,144.31,35.15677987]
[1741335088928,14.54765185,144.35,144.31,35.15677987]
[1741335089123,14.54765185,144.35,144.31,347.15677987]
[1741335089327,0.03,144.35,144.31,0.14216157]
[1741335089640,7.09976157,144.35,144.29,117.1146183]
[1741335089821,7.09976157,144.35,144.3,0.14216157]
[1741335090335,0.14216157,144.33,144.28,0.17516157]
[1741335090517,0.14216157,144.33,144.28,0.033]
[1741335091451,1.70106157,144.31,144.28,0.033]
[1741335091816,0.14216157,144.29,144.28,0.033]
[1741335092436,0.14216157,144.27,144.16,145.633]
[1741335092635,0.14216157,144.25,144.19,82.133]
[1741335092841,0.14216157,144.23,144.19,82.133]
[1741335093047,18.79181043,144.23,144.19,0.033]
[1741335093246,0.14216157,144.23,144.19,0.033]
[1741335093428,18.79181043,144.23,144.19,0.033]
[1741335093748,6.9338,144.22,144.19,0.033]
[1741335096031,10.0135879,144.23,144.19,0.033]
[1741335096552,3.4205879,144.23,144.19,0.17516157]
[1741335096724,14.867,144.24,144.19,0.17516157]
[1741335097129,18.28168014,144.24,144.19,0.17516157]
[1741335097445,18.79181043,144.23,144.19,0.033]
[1741335098165,6.9338,144.22,144.19,0.033]
[1741335102452,7.07546157,144.23,144.19,0.033]
[1741335102856,18.28168014,144.24,144.19,0.17516157]
[1741335103164,11.34868014,144.24,144.19,0.17516157]
[1741335103373,11.34868014,144.24,144.19,0.033]
[1741335103581,18.28158014,144.24,144.19,21.96822277]
[1741335103754,11.92158014,144.24,144.19,21.96822277]
[1741335104247,11.92158014,144.24,144.19,0.033]
[1741335107871,11.92158014,144.24,144.19,21.96822277]
[1741335108076,6.9319,144.26,144.2,0.17516157]
[1741335108269,10.39440211,144.26,144.2,104.21038434]
[1741335108969,3.46250211,144.26,144.22,21.93522277]
[1741335109167,89.07376157,144.27,144.22,21.93522277]
[1741335109370,8.5945,144.28,144.23,0.14216157]
[1741335109859,8.5945,144.28,144.23,7.07536157]
[1741335110765,8.5945,144.28,144.23,0.14216157]
[1741335110969,12.05187084,144.28,144.23,0.14216157]
[1741335113563,0.14216157,144.27,144.22,82.1]
[1741335115086,6.9319,144.26,144.22,82.1]
[1741335116568,0.14216157,144.27,144.22,82.1]
[1741335116781,7.07376157,144.27,144.22,89.0337]
[1741335117092,12.08187084,144.28,144.23,0.14216157]
[1741335117283,10.41847084,144.28,144.23,0.14216157]
[1741335118187,0.14216157,144.27,144.22,82.1]
[1741335120376,6.9319,144.26,144.22,82.1]
[1741335121381,6.9319,144.26,144.22,89.0338]
[1741335121582,10.41847084,144.28,144.23,22.07738434]
[1741335121784,10.41847084,144.28,144.23,0.14216157]
[1741335122279,6.9319,144.26,144.22,82.1]
[1741335123064,6.9319,144.26,144.23,0.14216157]
[1741335123498,0.14216157,144.25,144.2,0.033]
[1741335123866,0.14216157,144.25,144.2,0.17516157]
[1741335125189,6.9319,144.26,144.2,29.04508434]
[1741335125390,6.9319,144.26,144.22,21.93522277]
[1741335125995,6.9319,144.26,144.21,22.07738434]
[1741335126694,3.48737084,144.28,144.22,21.93522277]
[1741335126876,3.48737084,144.28,144.24,0.14216157]
[1741335127077,0.03,144.28,144.24,29.00998434]
[1741335127277,0.03,144.28,144.23,22.07738434]
[1741335127492,0.03,144.28,144.23,0.14216157]
[1741335128900,0.03,144.28,144.22,145.6]
[1741335129071,6.9324,144.25,144.2,0.033]
[1741335129492,24.2634,144.25,144.2,0.033]
[1741335129691,24.2634,144.25,144.2,0.17516157]
[1741335129892,0.14216157,144.24,144.2,0.033]
[1741335130278,18.79181043,144.24,144.2,0.033]
[1741335131095,8.4664,144.25,144.2,0.033]
[1741335132119,0.14216157,144.24,144.2,0.033]
[1741335133200,7.07536157,144.24,144.2,0.033]
[1741335134199,25.72501043,144.24,144.2,0.033]
[1741335136208,0.14216157,144.22,144.2,0.033]
[1741335137611,7.07626157,144.22,144.2,0.033]
[1741335138316,6.9335,144.23,144.2,0.033]
[1741335139410,5.03549869,144.29,144.21,0.14216157]
[1741335139582,5.03549869,144.29,144.25,21.93522277]
[1741335139583,0.03,144.29,144.25,21.93522277]
[1741335139784,0.03,144.29,144.27,22.07738434]
[1741335140012,0.03,144.29,144.27,167.67738434]
[1741335140880,0.03,144.29,144.27,145.74216157]
[1741335141087,0.03,144.29,144.27,167.67738434]
[1741335141406,0.03,144.29,144.27,82.24216157]
[1741335142398,0.03,144.29,144.27,394.24216157]
[1741335144821,0.03,144.29,144.27,82.24216157]
[1741335148106,0.03,144.29,144.27,82.1]
[1741335149014,0.03,144.29,144.22,21.93522277]
[1741335149325,0.17216157,144.28,144.23,0.14216157]
[1741335149530,6.9314,144.27,144.23,0.14216157]
[1741335150729,6.9611,144.28,144.23,0.14216157]
[1741335151101,6.9611,144.28,144.23,312.14216157]
[1741335151923,0.03,144.28,144.23,0.14216157]
[1741335152437,0.03,144.28,144.23,82.24216157]
[1741335153930,24.26,144.27,144.23,82.1]
[1741335155720,39.13522212,144.27,144.23,82.1]
[1741335156031,24.26,144.27,144.23,82.1]
[1741335158232,24.26,144.27,144.21,0.14216157]
[1741335158734,0.14216157,144.26,144.21,0.14216157]
[1741335159234,18.79181043,144.26,144.2,82.133]
[1741335161134,6.9324,144.25,144.2,82.133]
[1741335161513,16.19412932,144.26,144.21,22.07738434]
[1741335161717,88.9315,144.27,144.21,22.07738434]
[1741335162239,98.19412932,144.27,144.21,334.07738434]
[1741335162547,82.0,144.27,144.21,334.07738434]
[1741335163143,82.0,144.27,144.22,6.9338]
[1741335163644,0.14216157,144.26,144.21,0.14216157]
[1741335164534,13.07500645,144.25,144.21,0.14216157]
[1741335165029,0.14216157,144.26,144.21,0.14216157]
[1741335165232,1.5766,144.24,144.2,0.033]
[1741335165443,18.79181043,144.23,144.2,0.033]
[1741335167185,6.9338,144.22,144.2,0.033]
[1741335168438,25.72531043,144.23,144.2,0.033]
[1741335169042,0.14216157,144.21,144.2,0.033]
[1741335169237,7.07646157,144.21,144.2,0.033]
[1741335170029,19.52228218,144.21,144.2,0.033]
[1741335170224,38.17193104,144.21,144.2,0.033]
[1741335170426,25.72611043,144.21,144.2,0.033]
[1741335171252,107.72611043,144.21,144.2,0.033]
[1741335172252,115.40921043,144.21,144.2,0.033]
[1741335172438,121.06417235,144.21,144.2,0.033]
[1741335173028,124.61999003,144.21,144.2,0.033]
[1741335173547,118.96502811,144.21,144.2,0.033]
[1741335173853,1.6349,144.21,144.2,0.033]
[1741335174760,8.71136157,144.21,144.2,0.033]
[1741335181656,82.0,144.22,144.2,0.033]
[1741335181841,0.14216157,144.21,144.2,0.033]
[1741335182443,82.0,144.22,144.2,0.033]
[1741335182743,6.26,144.24,144.2,0.033]
[1741335182942,7.07556157,144.23,144.2,0.033]
[1741335183960,0.14216157,144.21,144.2,0.033]
[1741335184744,10.2282193,144.21,144.2,0.033]
[1741335185262,20.14216157,144.21,144.2,0.033]
[1741335185842,27.07646157,144.21,144.2,0.033]
[1741335189078,7.07646157,144.21,144.2,0.033]
[1741335190079,82.0,144.22,144.2,0.033]
[1741335190368,88.9339,144.22,144.2,0.033]
[1741335191083,6.9339,144.22,144.2,0.033]
[1741335193168,0.14216157,144.21,144.2,0.033]
[1741335194067,82.14216157,144.21,144.2,0.033]
[1741335194266,89.07646157,144.21,144.2,0.033]
[1741335194449,82.14216157,144.21,144.2,0.033]
[1741335194844,89.07646157,144.21,144.2,0.033]
[1741335195071,82.0,144.21,144.2,0.033]
[1741335195280,82.0,144.27,144.2,0.033]
[1741335195578,6.932,144.26,144.21,0.14216157]
[1741335196159,6.932,144.26,144.21,312.14216157]
[1741335197056,6.9315,144.27,144.21,312.14216157]
[1741335197365,6.9315,144.27,144.21,394.24216157]
[1741335197769,7.10316157,144.28,144.21,423.11158434]
[1741335197952,0.03,144.28,144.21,423.11158434]
[1741335198147,0.03,144.28,144.24,0.14216157]
[1741335198346,0.03,144.28,144.24,82.24216157]
[1741335199151,0.03,144.28,144.24,82.1]
[1741335200476,6.9609,144.28,144.24,82.1]
[1741335201375,0.03,144.28,144.25,0.14216157]
[1741335203779,0.03,144.28,144.24,394.1]
[1741335203952,17.99093292,144.28,144.24,82.1]
[1741335204153,0.03,144.28,144.24,82.1]
[1741335204352,0.03,144.28,144.25,0.14216157]
[1741335208781,0.03,144.28,144.25,82.24216157]
[1741335210386,0.03,144.28,144.25,89.17446157]
[1741335210554,0.03,144.28,144.25,152.67446157]
[1741335210759,0.03,144.28,144.26,6.1849]
[1741335211677,0.03,144.28,144.27,6.9314]
[1741335211869,0.03,144.28,144.27,174.60878434]
[1741335212071,0.03,144.28,144.27,193.2584332]
[1741335214191,0.03,144.28,144.27,505.2584332]
[1741335215380,0.03,144.28,144.27,498.3270332]